bitfinex-derivatives/quotes_ETHF0:USTF0_20250902
["timestamp","ask_amount","ask_price","bid_price","bid_amount"]
[1756822663451,5.75054333,4355.4,4355.3,0.33541648]
[1756822663648,6.58174333,4355.4,4355.3,0.59041648]
[1756822664145,5.14214333,4355.4,4355.3,0.59041648]
[1756822664549,5.14214333,4355.4,4355.3,0.33541648]
[1756822664749,5.40728952,4355.4,4355.3,0.59041648]
[1756822665154,5.40728952,4355.4,4355.3,0.33541648]
[1756822665451,3.34728952,4355.4,4355.3,4.59041648]
[1756822665648,3.2078,4357.3,4355.4,0.6376]
[1756822665947,3.2078,4357.3,4356.1,3.2078]
[1756822666150,3.2078,4357.3,4356.2,0.59041648]
[1756822666350,3.2078,4357.3,4356.3,0.33541648]
[1756822666551,3.2078,4357.3,4356.4,0.33541648]
[1756822666751,0.3431,4357.5,4356.6,3.2078]
[1756822666946,0.3431,4357.5,4356.7,0.33541648]
[1756822667251,0.3431,4357.5,4356.8,0.59041648]
[1756822667556,0.8312,4357.8,4357.1,3.2078]
[1756822667746,0.8312,4357.8,4357.2,0.59041648]
[1756822667947,0.8312,4357.9,4357.3,0.33541648]
[1756822668151,0.8312,4357.9,4357.4,0.33541648]
[1756822668348,0.3431,4358.0,4357.5,0.59041648]
[1756822668551,0.8312,4357.9,4357.6,0.33541648]
[1756822668762,0.3431,4358.0,4357.7,0.59041648]
[1756822668952,0.8312,4357.9,4357.8,0.33541648]
[1756822669451,0.8312,4357.9,4357.8,0.69402041]
[1756822669852,0.8312,4357.9,4357.8,0.6994575]
[1756822670757,0.8312,4357.9,4357.8,0.35860393]
[1756822670959,0.8312,4358.4,4357.8,0.35860393]
[1756822671160,0.3431,4358.5,4357.9,0.35860393]
[1756822671361,0.8312,4358.4,4358.0,0.61360393]
[1756822671561,0.8312,4358.4,4358.1,0.35860393]
[1756822671762,0.8312,4358.4,4358.2,0.92218476]
[1756822671962,0.8312,4358.4,4358.3,0.66718476]
[1756822672864,0.8312,4358.4,4358.3,0.255]
[1756822672865,4.8312,4358.4,4358.3,0.255]
[1756822673361,8.039,4358.4,4358.3,0.255]
[1756822673557,8.039,4358.4,4357.7,3.2078]
[1756822673754,0.8312,4357.7,4357.6,33.068]
[1756822673957,0.8312,4357.7,4357.6,33.323]
[1756822674259,0.3431,4357.0,4356.2,3.2078]
[1756822674454,0.3431,4357.0,4356.1,0.30994172]
[1756822674455,0.8312,4356.9,4356.3,0.255]
[1756822675055,0.8312,4356.9,4356.4,0.255]
[1756822675256,0.3431,4356.5,4355.3,3.2078]
[1756822675459,0.8312,4355.7,4355.3,3.2078]
[1756822675960,0.8312,4355.9,4355.3,3.2078]
[1756822676151,0.8312,4355.7,4355.4,0.255]
[1756822676350,0.8312,4356.3,4355.4,0.255]
[1756822677160,0.8312,4356.3,4356.0,4.0863]
[1756822677461,3.5509,4357.0,4356.0,3.2078]
[1756822677662,0.8312,4356.9,4356.1,0.255]
[1756822678054,0.8312,4356.9,4356.1,41.055]
[1756822678363,0.8312,4357.4,4356.5,3.2078]
[1756822678563,0.8312,4357.4,4356.6,0.255]
[1756822679661,0.3431,4357.5,4356.5,3.2078]
[1756822679864,0.8312,4357.4,4356.6,0.255]
[1756822680362,3.2078,4357.7,4356.7,0.68535494]
[1756822680568,3.2078,4357.2,4356.8,0.68535494]
[1756822680767,3.2078,4357.2,4356.9,0.68535494]
[1756822680968,3.2078,4357.2,4357.0,0.68535494]
[1756822681171,3.2078,4357.2,4357.1,1.81885494]
[1756822681470,3.816,4363.1,4357.6,0.8785]
[1756822681471,3.2078,4358.5,4357.6,0.8785]
[1756822681669,3.2078,4358.5,4357.8,0.8785]
[1756822681968,3.2078,4359.3,4358.3,4.0863]
[1756822682167,3.2078,4359.3,4358.4,1.81885494]
[1756822682366,3.2078,4359.3,4358.6,0.8785]
[1756822682664,33.06,4361.2,4359.1,0.8785]
[1756822682665,3.2078,4360.1,4359.1,0.8785]
[1756822682867,3.2078,4360.1,4359.3,0.8785]
[1756822683066,3.2078,4360.6,4359.6,0.8785]
[1756822683260,3.2078,4360.6,4359.7,0.94035494]
[1756822683468,3.2078,4360.6,4359.9,0.8785]
[1756822683670,3.2078,4360.6,4359.9,1.56385494]
[1756822684572,3.2078,4360.1,4359.9,0.68535494]
[1756822684871,3.2078,4360.1,4359.9,1.54681676]
[1756822685072,3.2078,4360.1,4359.9,2.42531676]
[1756822685367,3.2078,4360.6,4360.0,0.3478]
[1756822685563,3.2078,4361.4,4360.3,0.8785]
[1756822685768,3.2078,4361.4,4360.5,0.3478]
[1756822686067,3.2078,4361.4,4360.6,1.29181676]
[1756822686263,3.2078,4361.4,4360.7,1.54681676]
[1756822686473,3.2078,4361.4,4360.8,1.29181676]
[1756822686671,3.2078,4361.4,4360.9,0.99672004]
[1756822686870,3.2078,4361.4,4361.0,1.87522004]
[1756822687170,3.2078,4362.1,4361.1,1.29686028]
[1756822687370,3.2078,4362.1,4362.0,1.18764321]
[1756822687566,3.2078,4362.1,4362.0,0.99672004]
[1756822688372,7.2078,4362.1,4362.0,0.99672004]
[1756822688574,3.2078,4362.1,4362.0,0.99672004]
[1756822689066,3.2078,4362.7,4362.0,2.94172649]
[1756822689271,3.25,4362.7,4362.6,1.18697101]
[1756822689475,3.25,4362.7,4362.6,2.14139105]
[1756822689765,3.25,4362.7,4362.1,0.255]
[1756822689766,7.4628,4362.7,4361.6,0.255]
[1756822689958,3.4628,4362.7,4361.7,0.30547607]
[1756822690159,3.2078,4362.2,4361.8,0.30547607]
[1756822690359,3.2078,4362.2,4361.9,0.30547607]
[1756822690573,3.2078,4362.2,4361.4,2.57232683]
[1756822690759,3.2078,4362.2,4361.5,0.95645932]
[1756822690968,3.2078,4362.7,4361.8,0.9888]
[1756822691274,206.512,4367.8,4362.6,0.9888]
[1756822691275,3.2078,4363.7,4362.6,0.9888]
[1756822691472,3.2078,4363.7,4363.5,0.79103163]
[1756822691770,3.2078,4363.7,4363.1,0.255]
[1756822692565,3.2078,4363.7,4363.3,0.9888]
[1756822692763,3.2078,4363.7,4363.1,1.2438]
[1756822692972,3.2078,4363.7,4363.2,0.30484907]
[1756822693268,3.2078,4364.2,4363.3,0.30477122]
[1756822693569,33.04,4365.4,4364.1,0.7892453]
[1756822693570,3.2078,4364.8,4364.1,0.7892453]
[1756822693770,3.2078,4364.8,4364.7,0.59165498]
[1756822693965,3.4628,4364.8,4364.7,0.59165498]
[1756822694170,3.2078,4364.8,4364.5,0.59165498]
[1756822694466,3.2078,4364.8,4364.1,0.7888733]
[1756822694467,3.2078,4364.8,4364.4,0.59165498]
[1756822694669,3.2078,4364.8,4364.2,0.59165498]
[1756822694867,3.2078,4364.8,4364.3,0.59165498]
[1756822695262,3.2078,4364.8,4364.6,0.59165498]
[1756822695469,3.2078,4364.8,4364.5,0.59165498]
[1756822695776,3.2078,4364.8,4364.3,0.59165498]
[1756822695777,7.2078,4364.8,4364.3,0.59165498]
[1756822695976,3.4618,4364.8,4364.4,0.59165498]
[1756822696172,3.2078,4364.8,4363.8,4.1966]
[1756822696372,0.254,4364.7,4363.3,4.1966]
[1756822696569,3.2078,4364.3,4363.4,0.3039234]
[1756822696768,3.2078,4364.3,4363.5,0.3958]
[1756822696965,3.2078,4363.8,4363.0,0.3958]
[1756822697168,3.2078,4363.8,4363.1,0.254]
[1756822697473,3.2078,4363.3,4362.2,3.2078]
[1756822697680,0.254,4363.2,4362.2,3.2078]
[1756822698067,0.254,4363.2,4362.0,1.3846]
[1756822698068,3.2078,4362.6,4362.0,1.3846]
[1756822698266,3.2078,4362.6,4361.5,0.6498]
[1756822698267,3.4618,4362.6,4361.5,0.6498]
[1756822698471,3.2078,4362.6,4361.6,0.9888]
[1756822698862,3.2078,4362.6,4361.7,3.4618]
[1756822699169,33.026,4365.2,4361.7,3.4618]
[1756822699170,3.2078,4363.1,4361.8,0.9888]
[1756822699367,3.2078,4363.1,4362.1,3.2078]
[1756822699681,3.2078,4363.1,4362.3,0.9888]
[1756822699972,0.254,4363.6,4362.8,0.9888]
[1756822700178,3.2078,4364.2,4363.3,0.9888]
[1756822700379,3.2078,4364.2,4363.8,0.3958]
[1756822700577,3.2078,4365.1,4364.0,0.9888]
[1756822700775,0.254,4365.2,4363.2,3.2078]
[1756822700776,3.2078,4365.0,4363.2,3.2078]
[1756822700976,3.2078,4363.5,4362.4,1.2428]
[1756822701173,3.4618,4363.5,4362.4,1.2428]
[1756822701573,3.2078,4363.0,4362.0,0.3958]
[1756822701775,3.2078,4363.1,4362.1,1.31992631]
[1756822701981,0.254,4363.0,4362.2,0.33112631]
[1756822702281,3.2078,4363.1,4362.3,0.33112631]
[1756822702486,3.2078,4363.7,4362.4,0.3311778]
[1756822702777,3.4618,4363.6,4362.6,0.3958]
[1756822702982,0.254,4363.6,4362.8,0.9888]
[1756822703186,3.2078,4364.1,4362.9,0.33117835]
[1756822703385,3.2078,4364.1,4363.1,0.9888]
[1756822703679,3.2078,4364.2,4363.3,0.9888]
[1756822703984,3.2078,4364.7,4363.8,1.3846]
[1756822704785,3.2078,4364.7,4363.9,0.33029515]
[1756822705080,3.2078,4365.4,4364.1,0.9888]
[1756822705276,0.254,4365.3,4364.2,0.33048273]
[1756822705474,3.2078,4365.4,4364.4,0.3958]
[1756822705680,3.2078,4365.4,4364.5,0.9888]
[1756822705878,3.2078,4366.4,4365.1,0.9888]
[1756822706080,3.2078,4366.4,4365.4,0.9888]
[1756822706294,3.2078,4366.4,4366.2,0.3958]
[1756822706487,3.2078,4367.0,4366.3,0.9888]
[1756822707681,3.2078,4367.0,4366.9,0.9888]
[1756822707873,3.2078,4367.0,4366.8,0.3958]
[1756822708077,3.2078,4367.0,4366.4,0.9888]
[1756822708276,3.2078,4367.0,4366.4,0.254]
[1756822708477,3.2078,4367.0,4366.6,0.9888]
[1756822708677,3.2078,4367.0,4366.4,0.9888]
[1756822708884,3.2078,4367.0,4366.2,0.3958]
[1756822709080,3.2078,4367.0,4366.3,0.32953758]
[1756822709285,3.2078,4367.0,4365.7,0.9888]
[1756822709484,3.2078,4366.4,4365.9,1.31816781]
[1756822709780,33.017,4368.0,4365.9,0.9888]
[1756822709781,0.254,4366.7,4365.9,0.9888]
[1756822710375,0.254,4366.7,4365.6,0.3958]
[1756822710685,3.2078,4366.4,4365.3,0.9888]
[1756822710883,3.2078,4366.4,4365.8,4.4506]
[1756822711074,3.2078,4366.4,4365.8,3.4618]
[1756822711479,3.2078,4366.4,4365.9,0.254]
[1756822711678,3.2078,4366.4,4365.6,0.3958]
[1756822711679,3.2078,4366.4,4366.0,0.32900021]
[1756822711879,3.4618,4366.4,4365.3,0.254]
[1756822712079,3.2078,4366.4,4365.6,0.3958]
[1756822712591,3.2078,4366.4,4365.1,33.016]
[1756822712782,3.2078,4366.4,4365.3,0.254]
[1756822712983,3.2078,4366.4,4365.4,0.32934516]
[1756822713191,3.4618,4366.4,4365.7,0.9888]
[1756822713483,3.2078,4366.4,4365.6,1.3846]
[1756822713689,3.2078,4366.4,4365.7,0.32933289]
[1756822713881,3.2078,4366.4,4365.8,0.32933289]
[1756822714099,3.2078,4366.4,4365.6,1.6386]
[1756822714385,3.2078,4366.4,4365.7,0.32945156]
[1756822714582,3.2078,4366.4,4365.6,0.3958]
[1756822714783,3.2078,4366.4,4365.7,0.32956797]
[1756822714979,3.2078,4365.8,4365.4,0.9888]
[1756822715277,33.017,4368.0,4365.4,0.9888]
[1756822715479,3.2078,4366.3,4365.4,0.9888]
[1756822715683,3.2078,4366.3,4365.6,0.3958]
[1756822715880,0.254,4366.5,4365.6,0.3958]
[1756822716089,0.254,4366.5,4365.7,0.9888]
[1756822716478,0.254,4366.6,4365.8,0.32248991]
[1756822716688,3.4618,4366.8,4366.1,0.9888]
[1756822717090,3.2078,4366.8,4366.1,0.9888]
[1756822717488,0.254,4367.0,4366.1,0.9888]
[1756822717695,3.2078,4367.3,4366.3,0.9888]
[1756822717696,0.254,4367.2,4366.3,0.9888]
[1756822717884,0.254,4367.2,4366.5,0.3958]
[1756822718080,0.254,4367.2,4366.0,0.3958]
[1756822718283,0.254,4367.2,4366.1,0.32281945]
[1756822718493,0.254,4367.2,4366.2,0.32281945]
[1756822718680,3.2078,4367.3,4366.3,0.32281945]
[1756822718887,3.2078,4367.3,4366.5,0.3958]
[1756822719193,3.2078,4366.8,4366.0,0.3958]
[1756822719392,3.2078,4366.8,4366.1,0.32283876]
[1756822719589,3.2078,4366.3,4365.5,0.3726]
[1756822719893,3.2078,4365.8,4365.2,0.9658]
[1756822720084,3.2078,4365.8,4365.3,0.32305706]
[1756822720288,3.2078,4365.8,4365.4,0.32305706]
[1756822720489,3.2078,4365.8,4365.2,0.9658]
[1756822720686,33.017,4368.0,4365.4,0.9658]
[1756822720687,0.254,4365.9,4365.4,0.9658]
[1756822720884,0.254,4365.9,4365.6,0.9658]
[1756822721085,0.254,4365.9,4364.8,3.2078]
[1756822721086,3.2078,4365.7,4365.1,0.9658]
[1756822721387,3.2078,4365.7,4364.5,0.3726]
[1756822721388,3.2078,4365.3,4364.5,1.5924]
[1756822721591,3.2078,4365.3,4364.6,0.32353005]
[1756822721788,3.2078,4364.8,4364.5,0.9658]
[1756822721993,3.2078,4364.8,4363.5,0.3726]
[1756822721994,3.4618,4364.8,4363.5,0.3726]
[1756822722197,3.2078,4364.2,4363.6,0.3230719]
[1756822722494,3.2078,4364.2,4363.7,0.3230719]
[1756822722701,3.2078,4364.2,4363.8,0.32322261]
[1756822722893,3.2078,4364.2,4363.6,0.9658]
[1756822723193,3.2078,4363.7,4362.7,0.9658]
[1756822723390,0.254,4363.6,4363.1,0.32331189]
[1756822723692,3.2078,4363.2,4362.3,3.2078]
[1756822723891,0.254,4363.1,4362.6,1.28924689]
[1756822724084,0.254,4363.1,4362.7,0.32344689]
[1756822724397,0.254,4363.0,4362.3,3.2078]
[1756822724591,0.254,4363.0,4362.6,1.28939093]
[1756822724797,0.254,4363.0,4362.7,1.28939093]
[1756822724987,0.254,4363.0,4362.7,0.9658]
[1756822725193,0.254,4363.1,4362.4,0.9658]
[1756822725392,0.254,4363.1,4362.3,3.2078]
[1756822725695,3.2078,4362.7,4361.7,0.9658]
[1756822725887,3.2078,4363.0,4362.1,0.9658]
[1756822726290,3.2078,4363.0,4362.5,0.3726]
[1756822726494,3.2078,4363.0,4362.4,3.2078]
[1756822726689,0.254,4362.9,4362.1,0.9658]
[1756822726898,3.2078,4363.0,4362.6,0.9658]
[1756822727397,3.2078,4363.8,4362.5,0.3726]
[1756822727589,3.2078,4363.3,4362.6,0.9658]
[1756822727787,0.254,4363.2,4362.6,0.9658]
[1756822727989,3.2078,4364.0,4363.1,0.9658]
[1756822728393,3.2078,4364.0,4363.0,0.3726]
[1756822728803,3.2078,4363.5,4363.0,0.3726]
[1756822728995,0.254,4363.4,4363.0,1.3384]
[1756822729191,0.254,4363.3,4363.1,0.9658]
[1756822729393,0.254,4363.3,4362.5,0.3726]
[1756822729897,0.254,4363.3,4362.5,1.3384]
[1756822729898,3.2078,4363.0,4362.5,1.3384]
[1756822730099,0.254,4362.9,4362.5,1.3384]
[1756822730494,3.2078,4363.0,4362.5,1.3384]
[1756822730695,0.254,4362.9,4362.6,0.9658]
[1756822731000,0.254,4362.8,4362.5,0.3726]
[1756822731201,0.254,4362.8,4362.6,0.9658]
[1756822731503,0.254,4362.7,4362.6,0.9658]
[1756822731701,3.2078,4363.0,4362.6,0.9658]
[1756822732001,0.254,4362.9,4362.6,0.9658]
[1756822732197,0.254,4363.0,4362.5,0.3726]
[1756822732695,0.254,4363.4,4362.6,0.9658]
[1756822732996,0.254,4363.4,4363.0,0.3726]
[1756822733203,0.254,4363.4,4363.1,0.9658]
[1756822733397,3.4618,4363.4,4363.0,0.3726]
[1756822733591,36.2138,4364.0,4363.1,0.9658]
[1756822733803,0.254,4363.9,4363.1,0.9658]
[1756822733996,36.2138,4364.0,4363.1,0.9658]
[1756822734197,36.2138,4364.0,4363.5,0.3726]
[1756822734198,3.2078,4364.0,4363.5,0.3726]
[1756822734802,3.2078,4364.0,4363.6,0.9658]
[1756822735000,4.06299727,4368.6,4364.0,0.3726]
[1756822735001,3.2078,4364.5,4364.0,0.3726]
[1756822735304,9.09789645,4369.3,4364.2,0.9658]
[1756822735305,3.2078,4365.1,4364.2,0.9658]
[1756822736002,3.2078,4365.1,4365.0,1.3384]
[1756822736594,3.2078,4365.1,4364.5,0.3726]
[1756822736800,0.254,4365.0,4364.3,0.9658]
[1756822737303,3.2078,4365.1,4364.3,0.9658]
[1756822737504,0.254,4365.0,4364.3,0.9658]
[1756822738106,3.2078,4365.1,4364.3,0.9658]
[1756822738299,0.254,4365.0,4364.3,0.9658]
[1756822738495,3.2078,4365.1,4365.0,0.3726]
[1756822738701,3.2078,4365.1,4365.0,1.3384]
[1756822738908,3.2078,4365.7,4365.5,0.3726]
[1756822739102,3.2078,4365.7,4365.6,0.9658]
[1756822739408,0.254,4366.1,4365.6,0.9658]
[1756822739903,3.2078,4366.3,4366.1,0.9658]
[1756822740105,3.2078,4366.3,4366.0,0.3726]
[1756822740309,3.2078,4366.3,4365.5,1.3384]
[1756822740504,3.2078,4365.7,4364.9,0.9658]
[1756822740711,0.254,4365.6,4364.9,0.9658]
[1756822740899,3.2078,4365.7,4364.7,3.2078]
[1756822741102,0.254,4365.6,4365.5,0.3726]
[1756822741301,0.254,4365.6,4364.8,0.9658]
[1756822742300,0.254,4365.6,4365.5,0.3726]
[1756822742503,3.2078,4365.7,4365.6,0.9658]
[1756822742802,3.2078,4366.3,4365.6,0.9658]
[1756822743002,3.4618,4366.3,4366.1,0.9658]
[1756822743210,3.2078,4366.3,4366.1,0.9658]
[1756822743505,3.2078,4366.8,4366.6,0.9658]
[1756822743707,3.4618,4366.8,4366.6,0.9658]
[1756822744115,3.4618,4366.8,4366.0,1.3384]
[1756822744321,3.4618,4366.8,4366.0,0.3726]
[1756822744629,3.4618,4366.8,4366.6,0.9658]
[1756822744815,3.4618,4366.8,4366.5,0.3726]
[1756822745215,0.1,4370.2,4367.0,0.3726]
[1756822745216,3.2078,4367.3,4367.0,0.3726]
[1756822745514,3.2078,4367.3,4367.1,0.9658]
[1756822745715,33.171,4368.9,4368.0,0.3726]
[1756822745716,3.2078,4368.1,4368.0,0.3726]
[1756822745918,3.2078,4368.6,4368.5,0.3726]
[1756822746119,0.17,4368.9,4368.6,0.9658]
[1756822746716,0.17,4368.9,4368.5,0.3726]
[1756822747118,0.17,4368.9,4368.6,0.9658]
[1756822748017,0.254,4368.8,4368.2,0.9658]
[1756822748529,0.17,4368.9,4368.5,0.3726]
[1756822748815,0.424,4368.9,4368.6,0.9658]
[1756822749020,3.2078,4368.8,4368.5,0.3726]
[1756822749421,3.2078,4368.8,4368.2,0.95]
[1756822749724,0.254,4368.7,4368.1,0.95]
[1756822750615,0.254,4368.7,4367.0,0.3726]
[1756822750616,3.2078,4368.2,4367.0,0.3726]
[1756822750818,3.2078,4367.1,4366.2,0.95]
[1756822751016,3.2078,4367.1,4367.0,0.3643]
[1756822751218,3.4608,4367.1,4366.5,0.3643]
[1756822751517,3.4608,4367.1,4366.4,0.95]
[1756822751719,3.2078,4366.6,4366.0,0.3643]
[1756822751922,0.253,4366.5,4366.1,0.95]
[1756822752112,0.253,4366.5,4366.0,0.3643]
[1756822752314,3.2078,4366.6,4366.1,0.95]
[1756822752534,32.99,4368.6,4366.0,0.3643]
[1756822752535,0.253,4366.8,4366.6,0.95]
[1756822752718,0.253,4366.8,4366.0,1.3143]
[1756822752920,3.2078,4366.5,4366.0,0.3643]
[1756822753225,0.253,4366.4,4366.0,0.3643]
[1756822753522,0.253,4366.4,4365.5,1.3143]
[1756822753824,3.2078,4365.6,4365.5,1.3143]
[1756822754028,3.2078,4365.6,4365.0,0.3643]
[1756822754029,3.4608,4365.6,4365.0,0.3643]
[1756822755126,3.4608,4365.6,4364.6,0.95]
[1756822755519,3.2078,4365.6,4365.5,1.3143]
[1756822756021,3.2078,4365.6,4365.0,0.3643]
[1756822756219,0.253,4365.5,4365.0,0.3643]
[1756822756529,3.2078,4365.6,4365.5,1.3143]
[1756822757026,0.253,4365.7,4365.6,0.95]
[1756822757220,3.2078,4366.1,4366.0,1.3143]
[1756822757416,0.253,4367.0,4366.5,0.3643]
[1756822757626,0.253,4367.0,4366.6,0.95]
[1756822757820,3.2078,4367.7,4366.6,0.95]
[1756822758020,0.253,4367.6,4366.7,0.95]
[1756822759129,3.2078,4367.2,4366.7,0.95]
[1756822759326,0.253,4367.1,4365.0,3.5721]
[1756822759620,3.2078,4366.7,4365.7,0.95]
[1756822759819,3.2078,4366.2,4365.7,0.95]
[1756822760024,3.4608,4366.2,4365.6,0.95]
[1756822760527,3.4608,4366.2,4365.0,4.5221]
[1756822760729,3.4608,4366.2,4365.1,0.95]
[1756822760917,3.2078,4366.2,4365.1,0.95]
[1756822761124,0.253,4366.1,4365.1,0.95]
[1756822761324,3.2078,4366.2,4365.1,0.95]
[1756822761618,0.253,4366.0,4365.1,0.95]
[1756822762521,0.253,4366.0,4365.5,0.3643]
[1756822762722,0.253,4366.0,4365.6,0.95]
[1756822763128,0.253,4366.0,4365.5,0.3643]
[1756822763129,3.2078,4366.2,4365.5,1.3143]
[1756822763325,3.2078,4365.7,4365.0,1.3143]
[1756822763721,3.2078,4365.2,4364.6,0.95]
[1756822764725,3.2078,4365.2,4365.1,0.95]
[1756822764934,3.2078,4365.9,4365.1,0.95]
[1756822766028,3.2078,4365.9,4365.0,0.3643]
[1756822766227,3.2078,4365.4,4364.5,0.3643]
[1756822766428,3.2078,4365.4,4364.6,0.95]
[1756822766622,3.2078,4365.4,4365.1,0.95]
[1756822766930,3.2078,4366.0,4365.1,0.95]
[1756822767136,3.2078,4366.9,4365.6,0.95]
[1756822767427,3.2078,4366.4,4366.0,0.3643]
[1756822767833,3.2078,4366.4,4365.6,0.95]
[1756822768332,3.2078,4366.4,4365.5,3.5721]
[1756822768637,3.2078,4365.9,4365.0,1.3143]
[1756822768931,3.2078,4365.9,4365.0,0.95]
[1756822769427,3.2078,4365.4,4364.0,0.3643]
[1756822769622,3.2078,4364.6,4364.0,1.3143]
[1756822769827,3.2078,4364.1,4363.5,1.3143]
[1756822770230,3.2078,4363.6,4362.9,4.1578]
[1756822770436,3.2078,4363.1,4362.5,0.3643]
[1756822770637,3.2078,4363.1,4363.0,0.3643]
[1756822770839,3.2078,4363.1,4362.6,0.95]
[1756822770840,3.2078,4363.1,4362.5,0.3643]
[1756822771132,3.2078,4363.1,4363.0,0.3643]
[1756822771329,3.2078,4363.7,4363.0,1.3143]
[1756822771528,3.2078,4363.2,4363.1,0.95]
[1756822771724,3.2078,4364.3,4363.6,0.95]
[1756822772731,3.2078,4364.3,4364.1,0.95]
[1756822772939,3.2078,4364.3,4363.6,0.95]
[1756822773431,3.2078,4364.3,4364.0,0.3643]
[1756822773833,3.2078,4364.3,4363.5,1.3143]
[1756822774236,3.2078,4364.3,4364.0,0.3643]
[1756822774629,3.2078,4364.3,4363.5,0.3643]
[1756822775441,3.2078,4363.8,4363.0,0.3643]
[1756822775736,0.1145,4364.5,4362.5,0.3643]
[1756822775737,3.2078,4363.2,4362.5,0.3643]
[1756822776334,3.2078,4362.7,4361.8,0.95]
[1756822776536,3.2078,4362.1,4361.5,0.3643]
[1756822776935,3.2078,4362.1,4362.0,1.3143]
[1756822777131,3.2078,4362.8,4362.0,1.3143]
[1756822777439,3.2078,4363.7,4362.6,0.3643]
[1756822777634,3.2078,4363.2,4362.5,0.95]
[1756822777837,3.2078,4363.2,4362.0,0.3643]
[1756822778244,3.2078,4363.2,4362.1,0.95]
[1756822778840,3.2078,4363.2,4362.1,3.2078]
[1756822779046,3.2078,4363.2,4362.2,0.95]
[1756822780043,0.1145,4364.5,4361.5,0.3643]
[1756822780044,3.2078,4362.7,4361.6,0.8893]
[1756822780239,0.1145,4364.5,4361.5,0.3643]
[1756822780240,3.2078,4362.2,4361.5,0.3643]
[1756822780542,3.2078,4362.7,4362.1,0.8893]
[1756822780745,3.2078,4362.7,4362.6,1.2398]
[1756822781345,0.1145,4364.5,4362.6,5.2398]
[1756822781346,3.2078,4363.5,4362.6,5.2398]
[1756822781547,3.2078,4363.5,4362.7,0.8893]
[1756822782333,3.2078,4363.5,4362.1,0.8893]
[1756822782548,3.2078,4363.5,4362.1,1.11851]
[1756822782845,3.2078,4363.5,4362.2,0.8893]
[1756822783043,3.2078,4363.0,4362.2,0.8893]
[1756822783549,3.2078,4363.5,4362.2,0.8893]
[1756822783746,3.2078,4363.5,4362.8,0.8893]
[1756822784041,3.2078,4363.5,4363.1,0.8893]
[1756822784243,3.2078,4363.5,4363.0,0.3505]
[1756822784544,3.2078,4363.5,4363.1,0.8893]
[1756822784748,3.2078,4364.1,4363.1,0.8893]
[1756822784940,3.2078,4364.1,4363.0,4.3505]
[1756822784941,3.2078,4364.1,4364.0,1.2398]
[1756822785143,0.1145,4364.5,4364.0,1.2398]
[1756822785345,0.1145,4364.5,4364.1,0.8893]
[1756822785543,0.1145,4364.5,4363.5,0.3505]
[1756822785746,3.2078,4364.2,4363.5,0.3505]
[1756822786142,3.2078,4364.2,4363.6,0.8893]
[1756822786545,3.2078,4364.2,4363.5,0.3505]
[1756822786739,3.2078,4363.7,4363.0,1.2398]
[1756822786945,3.2078,4363.7,4362.5,3.5583]
[1756822786946,3.2078,4363.2,4362.5,3.5583]
[1756822787848,3.2078,4363.2,4362.5,0.3505]
[1756822788246,3.2078,4363.2,4363.0,0.3505]
[1756822788443,3.2078,4364.2,4363.1,0.8893]
[1756822789150,0.1145,4364.5,4363.4,0.8893]
[1756822789349,3.2078,4364.2,4363.4,0.8893]
[1756822789849,3.2078,4364.2,4363.5,0.3505]
[1756822790444,3.2078,4364.2,4364.0,0.3505]
[1756822790643,3.2078,4364.2,4364.1,0.8893]
[1756822790948,0.1145,4364.5,4364.0,0.3505]
[1756822791344,0.1145,4364.5,4364.1,0.8893]
[1756822791646,0.1145,4364.5,4363.6,0.8893]
[1756822792044,0.1145,4364.5,4364.1,0.8893]
[1756822792240,0.1145,4364.5,4364.0,0.3505]
[1756822792438,0.1145,4364.5,4364.0,1.2398]
[1756822792644,0.1145,4364.5,4364.0,0.3505]
[1756822792846,0.1145,4364.5,4364.1,0.8893]
[1756822793844,3.2078,4364.7,4364.0,0.3505]
[1756822794045,3.2078,4364.7,4364.1,0.8893]
[1756822794550,3.2078,4364.7,4363.6,0.8893]
[1756822795151,0.1145,4364.6,4363.6,0.8893]
[1756822795350,0.1145,4364.6,4364.5,1.2398]
[1756822798453,0.1145,4364.6,4364.5,0.8893]
[1756822798950,0.1145,4364.6,4364.0,0.3505]
[1756822798951,0.1145,4364.6,4364.0,1.2398]
[1756822800055,3.2078,4364.3,4363.5,1.2398]
[1756822800250,3.2078,4364.3,4363.0,1.52955554]
[1756822800251,3.2078,4363.8,4363.0,1.2398]
[1756822800552,3.2078,4363.9,4363.1,0.8893]
[1756822800759,3.3223,4364.6,4363.1,0.8893]
[1756822801056,3.2078,4363.9,4363.1,0.8893]
[1756822801456,3.2078,4363.9,4363.2,0.31824347]
[1756822801757,4.0666,4363.9,4363.1,0.8893]
[1756822801955,0.1145,4364.6,4363.4,3.2078]
[1756822801956,3.2078,4364.4,4363.4,3.2078]
[1756822802154,3.2078,4364.4,4363.5,1.2398]
[1756822802653,3.2078,4364.4,4363.6,0.8893]
[1756822803358,0.1145,4364.6,4363.6,0.8893]
[1756822803555,0.1145,4364.6,4363.7,0.22913999]
[1756822803858,0.1145,4364.6,4364.5,1.2398]
[1756822804261,0.1145,4364.6,4364.5,8.4476]
[1756822804962,3.2078,4366.1,4364.6,0.8893]
[1756822805263,0.9286,4366.8,4365.3,0.8893]